Body,Body Name,Date,TransNo,Amount £ (Excl VAT),Supplier name,Description,Expense Area,Expense Type,Expense Code
http://opendatacommunities.org/id/london-borough-council/sutton,London Borough of Sutton,21/11/2023,10015039,7.65,ASDA STORES,Childrens Centre Services spends,Health and Wellbeing,Miscellaneous Expenses,A49000
http://opendatacommunities.org/id/london-borough-council/sutton,London Borough of Sutton,21/11/2023,10015039,74.97,FARMFOODS 721,Childrens Centre Services spends,Health and Wellbeing,Miscellaneous Expenses,A49000
http://opendatacommunities.org/id/london-borough-council/sutton,London Borough of Sutton,14/11/2023,10015039,48,POUNDLAND LTD - 2007,Childrens Centre Services spends,Health and Wellbeing,Miscellaneous Expenses,A49000
http://opendatacommunities.org/id/london-borough-council/sutton,London Borough of Sutton,14/11/2023,10015039,100.93,FARMFOODS 721,Childrens Centre Services spends,Health and Wellbeing,Miscellaneous Expenses,A49000
http://opendatacommunities.org/id/london-borough-council/sutton,London Borough of Sutton,14/11/2023,10015039,69.51,AMZNMKTPLACE,Childrens Centre Services spends,Health and Wellbeing,Miscellaneous Expenses,A49000
http://opendatacommunities.org/id/london-borough-council/sutton,London Borough of Sutton,13/11/2023,10015039,50,TESCO GIFT CARD,Childrens Centre Services spends,Health and Wellbeing,Miscellaneous Expenses,A49000
http://opendatacommunities.org/id/london-borough-council/sutton,London Borough of Sutton,23/11/2023,10015039,184.95,HOME BARGAINS WIMBLEDO,Childrens Centre Services spends,Health and Wellbeing,Miscellaneous Expenses,A49000
http://opendatacommunities.org/id/london-borough-council/sutton,London Borough of Sutton,20/11/2023,10015039,33.19,COSTCO WHOLESALE #121,Childrens Centre Services spends,Health and Wellbeing,Miscellaneous Expenses,A49000
http://opendatacommunities.org/id/london-borough-council/sutton,London Borough of Sutton,15/11/2023,10015039,114.66,AMZNMKTPLACE,Childrens Centre Services spends,Health and Wellbeing,Miscellaneous Expenses,A49000
http://opendatacommunities.org/id/london-borough-council/sutton,London Borough of Sutton,06/11/2023,10015039,-8.33,EBAY O 08-10696-91368,REFUND,Health and Wellbeing,Equipment And Materials Purchase,A40000
http://opendatacommunities.org/id/london-borough-council/sutton,London Borough of Sutton,22/11/2023,10015039,8.32,TWINKL,TWINKL SUBSCRIPTION,Health and Wellbeing,Equipment And Materials Purchase,A40000
http://opendatacommunities.org/id/london-borough-council/sutton,London Borough of Sutton,21/11/2023,10015039,18.38,AMZNMKTPLACE,CLEANING SPRAY,Health and Wellbeing,Equipment And Materials Purchase,A40000
http://opendatacommunities.org/id/london-borough-council/sutton,London Borough of Sutton,15/11/2023,10015039,18.5,SAINSBURYS S/MKTS,GROCERIES,Health and Wellbeing,Equipment And Materials Purchase,A40000
http://opendatacommunities.org/id/london-borough-council/sutton,London Borough of Sutton,13/11/2023,10015039,60.33,TEMU.COM,ARTS AND CRAFTS/HAF SUPPLIES,Health and Wellbeing,Equipment And Materials Purchase,A40000
http://opendatacommunities.org/id/london-borough-council/sutton,London Borough of Sutton,13/11/2023,10015039,116.67,WWW.FROGGLEPARTIES.COM,HAF PARTY DEPOSIT,Health and Wellbeing,Equipment And Materials Purchase,A40000
http://opendatacommunities.org/id/london-borough-council/sutton,London Borough of Sutton,10/11/2023,10015039,7.58,SAINSBURYS S/MKTS,GROCERIES,Health and Wellbeing,Provisions,A41006
http://opendatacommunities.org/id/london-borough-council/sutton,London Borough of Sutton,21/11/2023,10015039,63.56,TESCO STORES 5999,GROCERIES,Health and Wellbeing,Provisions,A41006
http://opendatacommunities.org/id/london-borough-council/sutton,London Borough of Sutton,16/11/2023,10015039,9.29,ASDA SUPERSTORE,GROCERIES,Health and Wellbeing,Provisions,A41006
http://opendatacommunities.org/id/london-borough-council/sutton,London Borough of Sutton,10/11/2023,10015039,98.29,SAINSBURYS.CO.UK,GROCERIES,Health and Wellbeing,Provisions,A41006
http://opendatacommunities.org/id/london-borough-council/sutton,London Borough of Sutton,10/11/2023,10015039,-3.5,SAINSBURYS.CO.UK,GROCERIES,Health and Wellbeing,Provisions,A41006
http://opendatacommunities.org/id/london-borough-council/sutton,London Borough of Sutton,07/11/2023,10015039,65.64,TESCO STORES 5999,GROCERIES,Health and Wellbeing,Provisions,A41006
http://opendatacommunities.org/id/london-borough-council/sutton,London Borough of Sutton,03/11/2023,10015039,12.3,SAINSBURYS S/MKTS,GROCERIES,Health and Wellbeing,Provisions,A41006
http://opendatacommunities.org/id/london-borough-council/sutton,London Borough of Sutton,30/10/2023,10015039,86.23,SAINSBURYS.CO.UK,GROCERIES,Health and Wellbeing,Provisions,A41006
http://opendatacommunities.org/id/london-borough-council/sutton,London Borough of Sutton,24/11/2023,10015039,109.28,SAINSBURYS.CO.UK,GROCERIES,Health and Wellbeing,Provisions,A41006
http://opendatacommunities.org/id/london-borough-council/sutton,London Borough of Sutton,03/11/2023,10015039,8.89,SP SOFTKEYS-UK,Central & Branch Libraries,Health and Wellbeing,Miscellaneous Expenses,A49000
http://opendatacommunities.org/id/london-borough-council/sutton,London Borough of Sutton,30/10/2023,10015039,14.4,AMZNMKTPLACE,Central & Branch Libraries,Health and Wellbeing,Miscellaneous Expenses,A49000
http://opendatacommunities.org/id/london-borough-council/sutton,London Borough of Sutton,15/11/2023,10015039,54.36,AMZNBUSINESS HB8RO72B4,Snr Management Promoting Ind / Int Prov costs,Health and Wellbeing,Miscellaneous Expenses,A49000
http://opendatacommunities.org/id/london-borough-council/sutton,London Borough of Sutton,15/11/2023,10015039,109.55,SP FRED ALDOUS,Snr Management Promoting Ind / Int Prov costs,Health and Wellbeing,Miscellaneous Expenses,A49000
http://opendatacommunities.org/id/london-borough-council/sutton,London Borough of Sutton,15/11/2023,10015039,58.24,AMZNBUSINESS HB6XQ5204,Snr Management Promoting Ind / Int Prov costs,Health and Wellbeing,Miscellaneous Expenses,A49000
http://opendatacommunities.org/id/london-borough-council/sutton,London Borough of Sutton,15/11/2023,10015039,-14.62,AMZNBUSINESS HB6XQ5204,Snr Management Promoting Ind / Int Prov costs,Health and Wellbeing,Miscellaneous Expenses,A49000
http://opendatacommunities.org/id/london-borough-council/sutton,London Borough of Sutton,15/11/2023,10015039,66.56,AMZNBUSINESS HB6XE3224,Snr Management Promoting Ind / Int Prov costs,Health and Wellbeing,Miscellaneous Expenses,A49000
http://opendatacommunities.org/id/london-borough-council/sutton,London Borough of Sutton,15/11/2023,10015039,-16.68,AMZNBUSINESS HB6XE3224,Snr Management Promoting Ind / Int Prov costs,Health and Wellbeing,Miscellaneous Expenses,A49000
http://opendatacommunities.org/id/london-borough-council/sutton,London Borough of Sutton,16/11/2023,10015039,121.95,AMZN MKTP US XT3L49II3,Snr Management Promoting Ind / Int Prov costs,Health and Wellbeing,Miscellaneous Expenses,A49000
http://opendatacommunities.org/id/london-borough-council/sutton,London Borough of Sutton,16/11/2023,10015039,23.7,AMZNMKTPLACE,Snr Management Promoting Ind / Int Prov costs,Health and Wellbeing,Miscellaneous Expenses,A49000
http://opendatacommunities.org/id/london-borough-council/sutton,London Borough of Sutton,18/11/2023,10015039,-5.35,SP FRED ALDOUS,Snr Management Promoting Ind / Int Prov costs,Health and Wellbeing,Miscellaneous Expenses,A49000
http://opendatacommunities.org/id/london-borough-council/sutton,London Borough of Sutton,15/11/2023,10015039,219,CYANOTYPE.CO.UK,Snr Management Promoting Ind / Int Prov costs,Health and Wellbeing,Miscellaneous Expenses,A49000
http://opendatacommunities.org/id/london-borough-council/sutton,London Borough of Sutton,14/11/2023,10015039,1.75,TFL TRAVEL CH,Snr Management Promoting Ind / Int Prov costs,Health and Wellbeing,Miscellaneous Expenses,A49000
http://opendatacommunities.org/id/london-borough-council/sutton,London Borough of Sutton,13/11/2023,10015039,37.11,AMZNMKTPLACE,Snr Management Promoting Ind / Int Prov costs,Health and Wellbeing,Miscellaneous Expenses,A49000
http://opendatacommunities.org/id/london-borough-council/sutton,London Borough of Sutton,13/11/2023,10015039,57,WWW.THEWORKS.CO.UK,Snr Management Promoting Ind / Int Prov costs,Health and Wellbeing,Miscellaneous Expenses,A49000
http://opendatacommunities.org/id/london-borough-council/sutton,London Borough of Sutton,26/10/2023,10015039,59.76,TILL ROLLS STONE LABEL,Snr Management Promoting Ind / Int Prov costs,Health and Wellbeing,Miscellaneous Expenses,A49000
http://opendatacommunities.org/id/london-borough-council/sutton,London Borough of Sutton,26/10/2023,10015039,110.21,AMZNMKTPLACE,PENS,Health and Wellbeing,Provider Contract Payments,A44290
http://opendatacommunities.org/id/london-borough-council/sutton,London Borough of Sutton,26/10/2023,10015039,9.08,AMZNMKTPLACE,SPLIT - 150 X SHEETS A4 PREMIUM SNOW WHITE PRINTER CRAFT CARD DECOUPAGE 160GSM (100%),Health and Wellbeing,Provider Contract Payments,A44290
http://opendatacommunities.org/id/london-borough-council/sutton,London Borough of Sutton,12/11/2023,10015039,106.08,AMZNMKTPLACE,Public Health Directorate Costs - Corporate Element,Health and Wellbeing,Miscellaneous Expenses,A49000
http://opendatacommunities.org/id/london-borough-council/sutton,London Borough of Sutton,11/11/2023,10015039,71.44,AMZNMKTPLACE,Public Health Directorate Costs - Corporate Element,Health and Wellbeing,Miscellaneous Expenses,A49000
http://opendatacommunities.org/id/london-borough-council/sutton,London Borough of Sutton,10/11/2023,10015039,64.99,AMZNMKTPLACE,Public Health Directorate Costs - Corporate Element,Health and Wellbeing,Miscellaneous Expenses,A49000
http://opendatacommunities.org/id/london-borough-council/sutton,London Borough of Sutton,14/11/2023,10015039,58.79,TRAINLINE,VISIT TO REVIEW CARE PROVIDER BASED IN CLACTON-ON-SEA,Resources,Miscellaneous Expenses,A49000
http://opendatacommunities.org/id/london-borough-council/sutton,London Borough of Sutton,15/11/2023,10015039,58.79,TRAINLINE,TRAIN TICKETS,Resources,Miscellaneous Expenses,A49000
http://opendatacommunities.org/id/london-borough-council/sutton,London Borough of Sutton,15/11/2023,10015039,-55.4,TRAINLINE,TRAIN TICKETS,Resources,Miscellaneous Expenses,A49000
http://opendatacommunities.org/id/london-borough-council/sutton,London Borough of Sutton,03/11/2023,10015039,9.16,SPOTIFY P26EE73C68,MUSIC FOR WEDDINGS,Health and Wellbeing,Subscriptions,A47010
http://opendatacommunities.org/id/london-borough-council/sutton,London Borough of Sutton,06/11/2023,10015039,5,FEE2PAYONLINE,ROYAL MAIL POSTAGE NOT PAID,Health and Wellbeing,Miscellaneous Expenses,A49000
http://opendatacommunities.org/id/london-borough-council/sutton,London Borough of Sutton,06/11/2023,10015039,1.5,FEE2PAYONLINE,ROYAL MAIL - SENDER DID NOT PAY CORRECT POSTAGE,Health and Wellbeing,Miscellaneous Expenses,A49000
http://opendatacommunities.org/id/london-borough-council/sutton,London Borough of Sutton,21/11/2023,10015039,4.17,NEW SOUTHERN RAILW,TRAVEL FOR MEETING,Health and Wellbeing,Miscellaneous Expenses,A49000
http://opendatacommunities.org/id/london-borough-council/sutton,London Borough of Sutton,23/11/2023,10015039,45,ZETTLE_ ORU SPACE LTD,"REFRESHMENTS FROM ORU FOR  ""REDACTED - PERSONAL DATA"" AWAY DAY 08.12.2023",Resources,Miscellaneous Expenses,A49000
http://opendatacommunities.org/id/london-borough-council/sutton,London Borough of Sutton,01/11/2023,10015039,140.25,ORU SPACE,"BOOKING ORU MEETING ROOM FOR  ""REDACTED - PERSONAL DATA"" AWAY DAY ON 8TH DECEMBER 2023",Resources,Miscellaneous Expenses,A49000
http://opendatacommunities.org/id/london-borough-council/sutton,London Borough of Sutton,07/11/2023,10015039,2.59,LUCIDCHART.COM/CHARGE,LUCID CHART RENEWAL FOREIGN EXCHANGE FEE,Resources,Registration & Licence Fees Payable,A44267
http://opendatacommunities.org/id/london-borough-council/sutton,London Borough of Sutton,06/11/2023,10015039,94.09,LUCIDCHART.COM/CHARGE,LUCID CHART SUBSCRIPTION RENEWAL FOR COMMITTEE SERVICES,Resources,Registration & Licence Fees Payable,A44267
http://opendatacommunities.org/id/london-borough-council/sutton,London Borough of Sutton,20/11/2023,10015039,-299.96,AO RETAIL LIMITED,Required for client / home set up,People's Services,Miscellaneous Expenses,A49000
http://opendatacommunities.org/id/london-borough-council/sutton,London Borough of Sutton,14/11/2023,10015039,"5,625.78",AO RETAIL LIMITED,Items required for client,People's Services,Miscellaneous Expenses,A49000
http://opendatacommunities.org/id/london-borough-council/sutton,London Borough of Sutton,09/11/2023,10015039,2.5,GREGGS,GREGGS FOOD VOUCHERS,People's Services,Miscellaneous Expenses,A49000
http://opendatacommunities.org/id/london-borough-council/sutton,London Borough of Sutton,08/11/2023,10015039,100,NATIONWIDE,GREGGS FOOD VOUCHERS,People's Services,Miscellaneous Expenses,A49000
http://opendatacommunities.org/id/london-borough-council/sutton,London Borough of Sutton,08/11/2023,10015039,110,GREGGS,GREGGS FOOD VOUCHERS,People's Services,Miscellaneous Expenses,A49000
http://opendatacommunities.org/id/london-borough-council/sutton,London Borough of Sutton,30/10/2023,10015039,378,WALLINGTON CARS & COUR,TAXI BOOKING FOR CLIENT,People's Services,C.C.A Travel & Subsistance,A61010
http://opendatacommunities.org/id/london-borough-council/sutton,London Borough of Sutton,09/11/2023,10015039,"2,900.00",WWW.ICO.ORG.UK,ICO - DATA PROTECTION FEE RENEWAL,Resources,Subscriptions,A47010
http://opendatacommunities.org/id/london-borough-council/sutton,London Borough of Sutton,24/11/2023,10015039,8.95,DAWSONS,"key cut for  ""REDACTED - PERSONAL DATA"" for his locker",Resources,Stationery,A43015
http://opendatacommunities.org/id/london-borough-council/sutton,London Borough of Sutton,26/10/2023,10015039,20,TFL OYSTER AUTO TOPUP,"AUTOMATIC OYSTER TOP UP FOR ""REDACTED - PERSONAL DATA""",Resources,Non-Staff Travel Subsistence & Training,A46006
http://opendatacommunities.org/id/london-borough-council/sutton,London Borough of Sutton,02/11/2023,10015039,365.1,TRAINLINE,Corporate Communications,Resources,Miscellaneous Expenses,A49000
http://opendatacommunities.org/id/london-borough-council/sutton,London Borough of Sutton,21/11/2023,10015039,277.51,MAILCHIMP,Corporate Communications,Resources,Miscellaneous Expenses,A49000
http://opendatacommunities.org/id/london-borough-council/sutton,London Borough of Sutton,19/11/2023,10015039,7.49,AMAZON PRIME HI5CO23N4,Corporate Communications,Resources,Miscellaneous Expenses,A49000
http://opendatacommunities.org/id/london-borough-council/sutton,London Borough of Sutton,17/11/2023,10015039,46.23,AMZNMKTPLACE,Corporate Communications,Resources,Miscellaneous Expenses,A49000
http://opendatacommunities.org/id/london-borough-council/sutton,London Borough of Sutton,02/11/2023,10015039,-65,BKG HOTEL AT BOOKING.C,Corporate Communications,Resources,Miscellaneous Expenses,A49000
http://opendatacommunities.org/id/london-borough-council/sutton,London Borough of Sutton,27/10/2023,10015039,284.48,MAILCHIMP,Corporate Communications,Resources,Miscellaneous Expenses,A49000
http://opendatacommunities.org/id/london-borough-council/sutton,London Borough of Sutton,14/11/2023,10015039,491.04,MAILCHIMP,Corporate Communications,Resources,Miscellaneous Expenses,A49000
http://opendatacommunities.org/id/london-borough-council/sutton,London Borough of Sutton,22/11/2023,10015039,165.9,THE CRYERARTS CENTRE,Corporate Communications,Resources,Miscellaneous Expenses,A49000
http://opendatacommunities.org/id/london-borough-council/sutton,London Borough of Sutton,07/11/2023,10015039,144.9,WWW.INSTANTPRINT.C,Corporate Communications,Resources,Miscellaneous Expenses,A49000
http://opendatacommunities.org/id/london-borough-council/sutton,London Borough of Sutton,10/11/2023,10015039,50.68,PAYPAL  DIGITALINSP,CL&G,Resources,"Grants, Contributions & Donations",A47005
http://opendatacommunities.org/id/london-borough-council/sutton,London Borough of Sutton,04/11/2023,10015039,40,TFL OYSTER AUTO TOPUP,CL&G,Resources,"Grants, Contributions & Donations",A47005
http://opendatacommunities.org/id/london-borough-council/sutton,London Borough of Sutton,17/11/2023,10015039,90,FIND A WILL,PROBATE CERTIFICATES,Resources,Miscellaneous Expenses,A49000
http://opendatacommunities.org/id/london-borough-council/sutton,London Borough of Sutton,05/11/2023,10015039,11.57,AMZNMKTPLACE,H&S ITEMS,Resources,Equipment And Materials Repairs & Maintenance,A40051
http://opendatacommunities.org/id/london-borough-council/sutton,London Borough of Sutton,22/11/2023,10015039,67.6,AMZNMKTPLACE,CATERING,Resources,Catering,A41000
http://opendatacommunities.org/id/london-borough-council/sutton,London Borough of Sutton,01/11/2023,10015039,131.15,WWW.SCREWFIX.COM,Items required for caretakers to carry out task,Resources,Domestic Supplies,A27021
http://opendatacommunities.org/id/london-borough-council/sutton,London Borough of Sutton,31/10/2023,10015039,218.42,WWW.SCREWFIX.COM,Items required for caretakers to carry out task,Resources,Domestic Supplies,A27021
http://opendatacommunities.org/id/london-borough-council/sutton,London Borough of Sutton,09/11/2023,10015039,11.25,TIMPSON LTD,Cylinder and Mort purchase,Resources,Domestic Supplies,A27021
http://opendatacommunities.org/id/london-borough-council/sutton,London Borough of Sutton,08/11/2023,10015039,16.62,AMZNMKTPLACE,Batteries,Resources,Domestic Supplies,A27021
http://opendatacommunities.org/id/london-borough-council/sutton,London Borough of Sutton,20/11/2023,10015039,7.15,WWW.SCREWFIX.COM,Items required for caretakers to carry out task,Resources,Miscellaneous Expenses,A49000
http://opendatacommunities.org/id/london-borough-council/sutton,London Borough of Sutton,22/11/2023,10015039,7.5,TIMPSON LTD,Keys for Civic Social services team,Resources,Equipment And Materials Repairs & Maintenance,A40051
http://opendatacommunities.org/id/london-borough-council/sutton,London Borough of Sutton,05/11/2023,10015039,7.49,AMZNMKTPLACE,"SPLIT - EUROSONIC 4 WAY EXTENSION WITH 2 METRE CABLE, 1-PACK (100%)",Environment Housing and Neighbourhoods,Stationery,A43015
http://opendatacommunities.org/id/london-borough-council/sutton,London Borough of Sutton,27/10/2023,10015039,18.48,ORU SPACE,"ROOM BOOKING FOR THE 30TH OCTOBER - ""REDACTED - PERSONAL DATA""",Environment Housing and Neighbourhoods,Hire of Rooms,A22010
http://opendatacommunities.org/id/london-borough-council/sutton,London Borough of Sutton,31/10/2023,10015039,213.78,TRAINLINE,SITE VISIT TO MK X3 TICKETS,Environment Housing and Neighbourhoods,Waste Contractor Payment,A56057
http://opendatacommunities.org/id/london-borough-council/sutton,London Borough of Sutton,16/11/2023,10015039,307.46,TRAVELODGE,EMERGENCY ACCOMMODATION FOR HOMELESS HOUSEHOLD,Environment Housing and Neighbourhoods,Bed & Breakfast,A56000
http://opendatacommunities.org/id/london-borough-council/sutton,London Borough of Sutton,13/11/2023,10015039,52.49,TRAVELODGE,EMERGENCY ACCOMMODATION FOR HOMELESS HOUSEHOLD,Environment Housing and Neighbourhoods,Bed & Breakfast,A56000
http://opendatacommunities.org/id/london-borough-council/sutton,London Borough of Sutton,21/11/2023,10015039,90.83,BKG HOTEL AT BOOKING.C,EMERGENCY ACCOMMODATION FOR HOMELESS HOUSEHOLD,Environment Housing and Neighbourhoods,Bed & Breakfast,A56000
http://opendatacommunities.org/id/london-borough-council/sutton,London Borough of Sutton,02/11/2023,10015039,261.62,TRAVELODGE,EMERGENCY ACCOMMODATION FOR HOMELESS HOUSEHOLD,Environment Housing and Neighbourhoods,Bed & Breakfast,A56000
http://opendatacommunities.org/id/london-borough-council/sutton,London Borough of Sutton,31/10/2023,10015039,126.65,BKG HOTEL AT BOOKING.C,EMERGENCY ACCOMMODATION FOR HOMELESS HOUSEHOLD,Environment Housing and Neighbourhoods,Bed & Breakfast,A56000
http://opendatacommunities.org/id/london-borough-council/sutton,London Borough of Sutton,16/11/2023,10015039,210,SUMUP   ONTIME CARS MA,taxi booking due to out of borough visit,People's Services,Equipment And Materials Purchase,A40000
http://opendatacommunities.org/id/london-borough-council/sutton,London Borough of Sutton,23/11/2023,10015039,93.99,JD SPORTS FASHION PLC,10 X JD GIFT CARD PAYMENTS FOR YOUNG PEOPLE,People's Services,Client Care/Assistance,A61011
http://opendatacommunities.org/id/london-borough-council/sutton,London Borough of Sutton,24/11/2023,10015039,93.99,JD SPORTS FASHION PLC,10 X JD GIFT CARD PAYMENTS FOR YOUNG PEOPLE,People's Services,Client Care/Assistance,A61011
http://opendatacommunities.org/id/london-borough-council/sutton,London Borough of Sutton,24/11/2023,10015039,93.99,JD SPORTS FASHION PLC,10 X JD GIFT CARD PAYMENTS FOR YOUNG PEOPLE,People's Services,Client Care/Assistance,A61011
http://opendatacommunities.org/id/london-borough-council/sutton,London Borough of Sutton,24/11/2023,10015039,93.99,JD SPORTS FASHION PLC,10 X JD GIFT CARD PAYMENTS FOR YOUNG PEOPLE,People's Services,Client Care/Assistance,A61011
http://opendatacommunities.org/id/london-borough-council/sutton,London Borough of Sutton,15/11/2023,10015039,50.88,EB  PRE-SENTENCE REPOR,WORKSHOP FOR STAFF,People's Services,Staff Development And Training,A15022
http://opendatacommunities.org/id/london-borough-council/sutton,London Borough of Sutton,09/11/2023,10015039,13.13,AMZNMKTPLACE,SPLIT - 5 STAR COLOURED COPIER PAPER MULTIFUNCTIONAL REAM-WRAPPED 80GSM A4 MEDIUM YELLOW [500 SHEETS] (100%),People's Services,Printing And Photocopying,A43005
http://opendatacommunities.org/id/london-borough-council/sutton,London Borough of Sutton,26/10/2023,10015039,15.25,A B K NEWS,EG GROCERIES,People's Services,Miscellaneous Expenses,A49000
http://opendatacommunities.org/id/london-borough-council/sutton,London Borough of Sutton,02/11/2023,10015039,21.49,AMZNMKTPLACE,"SPLIT - SPALDING STREET OUTDOOR BASKETBALL 29.5"",ORANGE (100%)",People's Services,Miscellaneous Expenses,A49000
http://opendatacommunities.org/id/london-borough-council/sutton,London Borough of Sutton,31/10/2023,10015039,33,SUTTON REGISTER OFFICE,SOCIAL WORKER REQUESTED BIRTH CERTIFICATE,People's Services,Miscellaneous Expenses,A49000
http://opendatacommunities.org/id/london-borough-council/sutton,London Borough of Sutton,31/10/2023,10015039,33,SUTTON REGISTER OFFICE,SOCIAL WORKER REQUESTED BIRTH CERTIFICATE,People's Services,Miscellaneous Expenses,A49000
http://opendatacommunities.org/id/london-borough-council/sutton,London Borough of Sutton,28/10/2023,10015039,33.47,H & M,EG,People's Services,Miscellaneous Expenses,A49000
http://opendatacommunities.org/id/london-borough-council/sutton,London Borough of Sutton,15/11/2023,10015039,8.08,MCDONALDS,MW ACTIVITY,People's Services,Miscellaneous Expenses,A49000
http://opendatacommunities.org/id/london-borough-council/sutton,London Borough of Sutton,15/11/2023,10015039,10.83,WWW.BETTER.ORG.UK,PLAY PARK CONTACT,People's Services,Miscellaneous Expenses,A49000
http://opendatacommunities.org/id/london-borough-council/sutton,London Borough of Sutton,24/11/2023,10015039,13.34,THE CONNOISSEUR,RA,People's Services,Miscellaneous Expenses,A49000
http://opendatacommunities.org/id/london-borough-council/sutton,London Borough of Sutton,15/11/2023,10015039,750,AMAZON  203-5288272-46,GIFT CARD PAYMENT FOR CHILDREN EVENT,People's Services,Miscellaneous Expenses,A49000
http://opendatacommunities.org/id/london-borough-council/sutton,London Borough of Sutton,15/11/2023,10015039,750,AMAZON  203-5288272-46,GIFT CARD PAYMENT FOR CHILDREN EVENT,People's Services,Miscellaneous Expenses,A49000
http://opendatacommunities.org/id/london-borough-council/sutton,London Borough of Sutton,07/11/2023,10015039,13,WWW.BETTER.ORG.UK,SOFT PLAY PAYMENT FOR CONTACT FOR CLIENTS,People's Services,Miscellaneous Expenses,A49000
http://opendatacommunities.org/id/london-borough-council/sutton,London Borough of Sutton,15/11/2023,10015039,750,AMAZON  203-5288272-46,GIFT CARD PAYMENT FOR CHILDREN EVENT,People's Services,Miscellaneous Expenses,A49000
http://opendatacommunities.org/id/london-borough-council/sutton,London Borough of Sutton,15/11/2023,10015039,750,AMAZON  203-5288272-46,GIFT CARD PAYMENT FOR CHILDREN EVENT,People's Services,Miscellaneous Expenses,A49000
http://opendatacommunities.org/id/london-borough-council/sutton,London Borough of Sutton,15/11/2023,10015039,750,AMAZON  203-5288272-46,GIFT CARD PAYMENT FOR CHILDREN EVENT,People's Services,Miscellaneous Expenses,A49000
http://opendatacommunities.org/id/london-borough-council/sutton,London Borough of Sutton,15/11/2023,10015039,540,AMAZON  203-5288272-46,GIFT CARD PAYMENT FOR CHILDREN EVENT,People's Services,Miscellaneous Expenses,A49000
http://opendatacommunities.org/id/london-borough-council/sutton,London Borough of Sutton,28/10/2023,10015039,20,PRIMARK,EG,People's Services,Miscellaneous Expenses,A49000
http://opendatacommunities.org/id/london-borough-council/sutton,London Borough of Sutton,26/10/2023,10015039,15.2,NEW SOUTHERN RAILW,TRAVEL EG,People's Services,C.C.A Travel & Subsistance,A61010
http://opendatacommunities.org/id/london-borough-council/sutton,London Borough of Sutton,30/10/2023,10015039,100,DR PATRICK SYDNEY WILL,DENTIST APPOINTMENT FOR YOUNG PERSON,People's Services,Client Care/Assistance,A61011
http://opendatacommunities.org/id/london-borough-council/sutton,London Borough of Sutton,17/11/2023,10015039,95.83,DUNELM SOFTFURNISHINGS,MW SETTING UP,People's Services,Set Up Costs - Children Leaving Care,A61021
http://opendatacommunities.org/id/london-borough-council/sutton,London Borough of Sutton,17/11/2023,10015039,24.96,DUNELM SOFTFURNISHINGS,MW SETTING UP,People's Services,Set Up Costs - Children Leaving Care,A61021
http://opendatacommunities.org/id/london-borough-council/sutton,London Borough of Sutton,17/11/2023,10015039,23.32,WF  UK3981245684,MW SETTING UP,People's Services,Set Up Costs - Children Leaving Care,A61021
http://opendatacommunities.org/id/london-borough-council/sutton,London Borough of Sutton,25/11/2023,10015039,34.58,IKEA LTD 144 CROYDON E,MW SETTING UP,People's Services,Set Up Costs - Children Leaving Care,A61021
http://opendatacommunities.org/id/london-borough-council/sutton,London Borough of Sutton,13/11/2023,10015039,489.17,DUNELM SOFT FURNISHIN,MW SETTING UP,People's Services,Set Up Costs - Children Leaving Care,A61021
http://opendatacommunities.org/id/london-borough-council/sutton,London Borough of Sutton,13/11/2023,10015039,313.54,IKEA LTD 144 CROYDON M,MW SETTING UP,People's Services,Set Up Costs - Children Leaving Care,A61021
http://opendatacommunities.org/id/london-borough-council/sutton,London Borough of Sutton,02/11/2023,10015039,129.17,IKEA LTD SHOP ONLINE,EG SETTING UP,People's Services,Set Up Costs - Children Leaving Care,A61021
http://opendatacommunities.org/id/london-borough-council/sutton,London Borough of Sutton,01/11/2023,10015039,83.33,WWW.ARGOS.CO.UK,MW SETTING UP,People's Services,Set Up Costs - Children Leaving Care,A61021
http://opendatacommunities.org/id/london-borough-council/sutton,London Borough of Sutton,27/10/2023,10015039,164.73,HOLLISTER (BLUE WATER),SUG CLOTHING,People's Services,Clothing & Uniforms,A42005
http://opendatacommunities.org/id/london-borough-council/sutton,London Borough of Sutton,27/10/2023,10015039,18.5,PRIMARK 444,SUG CLOTHING,People's Services,Clothing & Uniforms,A42005
http://opendatacommunities.org/id/london-borough-council/sutton,London Borough of Sutton,14/11/2023,10015039,370.54,EASYJET,Out of borough visit plane ticket,People's Services,Hotel Accomodation,A46010
http://opendatacommunities.org/id/london-borough-council/sutton,London Borough of Sutton,16/11/2023,10015039,25.6,WWW.WIGHTLINK.CO.UK,Out of borough visit,People's Services,Hotel Accomodation,A46010
http://opendatacommunities.org/id/london-borough-council/sutton,London Borough of Sutton,02/11/2023,10015039,44.82,TENPIN.CO.UK,BOWLING FOR CLIENT,People's Services,Miscellaneous Expenses,A49000
http://opendatacommunities.org/id/london-borough-council/sutton,London Borough of Sutton,14/11/2023,10015039,7.88,MARKS&SPENCER PLC SF,ES HOSPITAL,People's Services,Miscellaneous Expenses,A49000
http://opendatacommunities.org/id/london-borough-council/sutton,London Borough of Sutton,27/10/2023,10015039,27.63,BOOTS,SUG TOILETRIES,People's Services,Miscellaneous Expenses,A49000
http://opendatacommunities.org/id/london-borough-council/sutton,London Borough of Sutton,27/10/2023,10015039,12.99,WH SMITH BLUEWATER,SUG ACTIVITY,People's Services,Miscellaneous Expenses,A49000
http://opendatacommunities.org/id/london-borough-council/sutton,London Borough of Sutton,27/10/2023,10015039,6.5,4.83E+14,SUG ACTIVITY,People's Services,Miscellaneous Expenses,A49000
http://opendatacommunities.org/id/london-borough-council/sutton,London Borough of Sutton,27/10/2023,10015039,8.05,MARKS&SPENCER PLC,SUG ACTIVITY,People's Services,Miscellaneous Expenses,A49000
http://opendatacommunities.org/id/london-borough-council/sutton,London Borough of Sutton,10/11/2023,10015039,6.5,MARKS&SPENCER PLC SF,ES HOSPITAL,People's Services,Miscellaneous Expenses,A49000
http://opendatacommunities.org/id/london-borough-council/sutton,London Borough of Sutton,02/11/2023,10015039,-1.35,ASDA GROCERIES ONLINE,ASDA SHOPPING REFUND FOR CHILDREN'S HOME,People's Services,Miscellaneous Expenses,A49000
http://opendatacommunities.org/id/london-borough-council/sutton,London Borough of Sutton,02/11/2023,10015039,96.86,ASDA GROCERIES ONLINE,ASDA SHOPPING PAYMENT FOR CHILDREN'S HOME,People's Services,Miscellaneous Expenses,A49000
http://opendatacommunities.org/id/london-borough-council/sutton,London Borough of Sutton,17/11/2023,10015039,15.99,NETFLIX.COM,NETFLIX PAYMENT FOR CHILDREN'S HOME,People's Services,Miscellaneous Expenses,A49000
http://opendatacommunities.org/id/london-borough-council/sutton,London Borough of Sutton,16/11/2023,10015039,76.85,ASDA GROCERIES ONLINE,ASDA SHOPPING PAYMENT FOR CHILDREN'S HOME,People's Services,Miscellaneous Expenses,A49000
http://opendatacommunities.org/id/london-borough-council/sutton,London Borough of Sutton,16/11/2023,10015039,-0.45,ASDA GROCERIES ONLINE,ASDA SHOPPING REFUND FOR CHILDREN'S HOME,People's Services,Miscellaneous Expenses,A49000
http://opendatacommunities.org/id/london-borough-council/sutton,London Borough of Sutton,15/11/2023,10015039,39.68,ASDA GROCERIES ONLINE,ASDA SHOPPING PAYMENT FOR CHILDREN'S HOME,People's Services,Miscellaneous Expenses,A49000
http://opendatacommunities.org/id/london-borough-council/sutton,London Borough of Sutton,12/11/2023,10015039,9.98,AMZNBUSINESS HB7CS0GB4,"SPLIT - FRIDGE TEMPERATURE LOG BOOK: FRIDGE AND FREEZER TEMPERATURE MONITORING LOGBOOK RECORD FOR HOMES, RESTAURANTS, BUSINESSES, CATERING AND MORE! (100%)",People's Services,Miscellaneous Expenses,A49000
http://opendatacommunities.org/id/london-borough-council/sutton,London Borough of Sutton,09/11/2023,10015039,110.95,ASDA GROCERIES ONLINE,ASDA SHOPPING PAYMENT FOR CHILDREN'S HOME,People's Services,Miscellaneous Expenses,A49000
http://opendatacommunities.org/id/london-borough-council/sutton,London Borough of Sutton,09/11/2023,10015039,24.16,AMZNMKTPLACE,"SPLIT - HP 26K72B DESKJET 2710E ALL-IN-ONE COLOUR PRINTER WITH 6 MONTHS OF INSTANT INK WITH +, WHITE (100%)",People's Services,Miscellaneous Expenses,A49000
http://opendatacommunities.org/id/london-borough-council/sutton,London Borough of Sutton,09/11/2023,10015039,-3.25,ASDA GROCERIES ONLINE,ASDA SHOPPING REFUND FOR CHILDREN'S HOME,People's Services,Miscellaneous Expenses,A49000
http://opendatacommunities.org/id/london-borough-council/sutton,London Borough of Sutton,14/11/2023,10015039,10.23,AMZNMKTPLACE,SPLIT - CIF PROFESSIONAL ALL PURPOSE CLEANER LEMON 5L (100%),People's Services,Miscellaneous Expenses,A49000
http://opendatacommunities.org/id/london-borough-council/sutton,London Borough of Sutton,14/11/2023,10015039,19.76,AMZNMKTPLACE,SPLIT - 3000 X Z FOLD WHITE PAPER HAND TOWELS (23.5CM X 24CM) 2 PLY (100%),People's Services,Miscellaneous Expenses,A49000
http://opendatacommunities.org/id/london-borough-council/sutton,London Borough of Sutton,21/11/2023,10015039,64.17,AMZNBUSINESS HI4EQ7M54,"SPLIT - RUSSELL HOBBS RHM2076B 20 LITRE 800 W BLACK DIGITAL SOLO MICROWAVE WITH 5 POWER LEVELS, AUTOMATIC DEFROST, 8 AUTO COOK MENUS, CLOCK & TIMER, EASY CLEAN (100%)",People's Services,Miscellaneous Expenses,A49000
http://opendatacommunities.org/id/london-borough-council/sutton,London Borough of Sutton,21/11/2023,10015039,29.16,AMZNMKTPLACE,"SPLIT - RUSSELL HOBBS 18790 FUTURA 4-SLICE TOASTER, 1500 W, STAINLESS STEEL SILVER, FOUR SLICE (100%)",People's Services,Miscellaneous Expenses,A49000
http://opendatacommunities.org/id/london-borough-council/sutton,London Borough of Sutton,21/11/2023,10015039,27.46,AMZNBUSINESS HI0AH3554,"SPLIT - RUSSELL HOBBS 20460 QUIET BOIL KETTLE, BRUSHED STAINLESS STEEL, 3000W, 1.7 LITRES (100%)",People's Services,Miscellaneous Expenses,A49000
http://opendatacommunities.org/id/london-borough-council/sutton,London Borough of Sutton,21/11/2023,10015039,18.74,HPI INSTANT INK UK,Ink subscription for Willow Rise,People's Services,Miscellaneous Expenses,A49000
http://opendatacommunities.org/id/london-borough-council/sutton,London Borough of Sutton,22/11/2023,10015039,25.99,AMZNBUSINESS HI5UV5QI4,SPLIT - DOCTOR WHO: THE LOST TV EPISODES COLLECTION ONE 1964-1965: NARRATED FULL-CAST TV SOUNDTRACKS (100%),People's Services,Miscellaneous Expenses,A49000
http://opendatacommunities.org/id/london-borough-council/sutton,London Borough of Sutton,21/11/2023,10015039,82.49,AMZNBUSINESS HI2D31V84,"SPLIT - TOWER T17088 VORTX 9L DUO BASKET AIR FRYER WITH SMART FINISH, 2600W POWER, BLACK (100%)",People's Services,Miscellaneous Expenses,A49000
http://opendatacommunities.org/id/london-borough-council/sutton,London Borough of Sutton,25/10/2023,10015039,59.99,WWW.JOHNLEWIS.COM,PLAYSTATION CONTROLLER FOR CLIENT,People's Services,Miscellaneous Expenses,A49000
http://opendatacommunities.org/id/london-borough-council/sutton,London Borough of Sutton,25/10/2023,10015039,499.98,WWW.JOHNLEWIS.COM,PLAYSTATION AND CONTROLLER FOR CLIENT,People's Services,Miscellaneous Expenses,A49000
http://opendatacommunities.org/id/london-borough-council/sutton,London Borough of Sutton,23/11/2023,10015039,120.38,ASDA GROCERIES ONLINE,ASDA PAYMENT FOR CHILDREN'S HOME,People's Services,Miscellaneous Expenses,A49000
http://opendatacommunities.org/id/london-borough-council/sutton,London Borough of Sutton,23/11/2023,10015039,9.99,AMZNMKTPLACE,"SPLIT - SPINGTON LUXURY STRIPE DESIGNED HEAVY DUTY KITCHEN TEA TOWELS - LARGE SIZE 60 X 40 CM - 100% COTTON, SUPER ABSORBENT AND DURABLE - LINT FREE HOTEL QUALITY DISH TOWELS (PACK OF 5) GREY (11.11%)",People's Services,Miscellaneous Expenses,A49000
http://opendatacommunities.org/id/london-borough-council/sutton,London Borough of Sutton,23/11/2023,10015039,79.95,AMZNMKTPLACE,"SPLIT - YDFAGAK WATERPROOF SHOE COVERS, SILICONE REUSABLE SHOE COVER NON-SLIP DURABLE ZIPPER ELASTIC RAIN COVER PROTECTION FOR MEN WOMEN, TRANSPARENT, L (WOMEN 6.5-9.5, MEN 7-10) (88.89%)",People's Services,Miscellaneous Expenses,A49000
http://opendatacommunities.org/id/london-borough-council/sutton,London Borough of Sutton,23/11/2023,10015039,16.66,AMZNMKTPLACE,"SPLIT - APLKER PLACEMATS AND COASTERS SET OF 6, HEAT INSULATION PU LEATHER TABLE MATS NON-SLIP WASHABLE WATERPROOF KITCHEN DINING PLACE MATS FOR HOME RESTAURANT HOTEL, GREY (100%)",People's Services,Miscellaneous Expenses,A49000
http://opendatacommunities.org/id/london-borough-council/sutton,London Borough of Sutton,23/11/2023,10015039,44.56,AMZNMKTPLACE,"SPLIT - GOLF UMBRELLA WINDPROOF LARGE 62 INCH, DOUBLE CANOPY VENTED, AUTOMATIC OPEN, EXTRA LARGE OVERSIZED, WATERPROOF SUN PROTECTION ULTRA RAIN & WIND RESISTANT UMBRELLAS, BLACK (100%)",People's Services,Miscellaneous Expenses,A49000
http://opendatacommunities.org/id/london-borough-council/sutton,London Borough of Sutton,23/11/2023,10015039,-12.31,ASDA GROCERIES ONLINE,ASDA REFUND FOR CHILDREN'S HOME,People's Services,Miscellaneous Expenses,A49000
http://opendatacommunities.org/id/london-borough-council/sutton,London Borough of Sutton,27/10/2023,10015039,125.93,ASDA GROCERIES ONLINE,ASDA FOOD SHOP FOR WILLOW RISE,People's Services,Miscellaneous Expenses,A49000
http://opendatacommunities.org/id/london-borough-council/sutton,London Borough of Sutton,23/11/2023,10015039,8.32,AMZNMKTPLACE,SPLIT - HEAT RESISTANT BLACK OVEN GLOVES | DOUBLE OVEN MITT POT HOLDER WITH SILICONE NON-SLIP DESIGN FOR HOME KITCHEN BAKING | BEST MODERN STYLISH COOKING OVEN GLOVE MITTS. (100%),People's Services,Miscellaneous Expenses,A49000
http://opendatacommunities.org/id/london-borough-council/sutton,London Borough of Sutton,23/11/2023,10015039,4.12,AMZNMKTPLACE,SPLIT - FOOD TEMPERATURE LOG BOOK: HOT-HOLDING FOOD TEMPERATURE LOG FOR RESTAURANTS AND FOOD TRUCKS (27.59%),People's Services,Miscellaneous Expenses,A49000
http://opendatacommunities.org/id/london-borough-council/sutton,London Borough of Sutton,23/11/2023,10015039,10.82,AMZNMKTPLACE,SPLIT - VISITOR LOG BOOK: GUEST SIGN IN AND SIGN OUT REGISTER FOR OFFICES AND BUSINESSES: TRACKING 3000 ENTRIES WITH EASE (MIDNIGHT BLUE) (72.41%),People's Services,Miscellaneous Expenses,A49000
http://opendatacommunities.org/id/london-borough-council/sutton,London Borough of Sutton,23/11/2023,10015039,44.99,CDKEYS.COM,FIFA PAYMENT FOR CHILDREN'S HOME,People's Services,Miscellaneous Expenses,A49000
http://opendatacommunities.org/id/london-borough-council/sutton,London Borough of Sutton,23/11/2023,10015039,19.99,AMZNMKTPLACE,SPLIT - JJUUYOU LARGE WELCOME MAT FOR FRONT DOOR LARGE 120X45CM OUTSIDE ENTRYWAY FUNNY WELCOME-ISH GRAY DOORMAT NON SLIP RUBBER BACKING LOW PROFILE MATS FOR ENTRY PATIO SHOE RUGS (58.58%),People's Services,Miscellaneous Expenses,A49000
http://opendatacommunities.org/id/london-borough-council/sutton,London Borough of Sutton,23/11/2023,10015039,7.49,AMZNMKTPLACE,SPLIT - ABRUS® STAINLESS STEEL COLANDER 24CM - ADVANCED STURDY BASE | WIDE HANDLE | DISHWASHER SAFE (21.95%),People's Services,Miscellaneous Expenses,A49000
http://opendatacommunities.org/id/london-borough-council/sutton,London Borough of Sutton,23/11/2023,10015039,6.64,AMZNMKTPLACE,"SPLIT - KÜCHE MANIA STAINLESS STEEL SIEVE SET - STRONG, STURDY HANDLES SET OF 3 SIEVE MESH, 7CM, 12CM, AND 18 CM SIEVE STAINLESS STEEL, RUST FREE STRAINERS AND NO SHARP EDGES (SET OF 3) (19.47%)",People's Services,Miscellaneous Expenses,A49000
http://opendatacommunities.org/id/london-borough-council/sutton,London Borough of Sutton,23/11/2023,10015039,29.99,AMZNMKTPLACE,"SPLIT - N++A NONSTICK WOK PAN 30CM INDUCTION, 100% PFOA-FREE GRANITE COATING STIR FRY PAN WITH LID, DEEP FRYING POT WITH REMOVABLE WOODEN HANDLE, GRANITE BLACK (100%)",People's Services,Miscellaneous Expenses,A49000
http://opendatacommunities.org/id/london-borough-council/sutton,London Borough of Sutton,23/11/2023,10015039,10.4,AMZNMKTPLACE,SPLIT - DAYDREAM EDUCATION FOOD PREPARATION & STORAGE | HEALTH AND SAFETY POSTERS | LAMINATED GLOSS PAPER 420MM X 594MM (A2) | HEALTH AND SAFETY OFFICE AND COMMERCIAL WALL CHARTS | EDUCATION CHARTS (83.53%),People's Services,Miscellaneous Expenses,A49000
http://opendatacommunities.org/id/london-borough-council/sutton,London Borough of Sutton,23/11/2023,10015039,2.05,AMZNMKTPLACE,BALANCING ENTRY AMOUNT (16.47%),People's Services,Miscellaneous Expenses,A49000
http://opendatacommunities.org/id/london-borough-council/sutton,London Borough of Sutton,24/11/2023,10015039,129.99,WWW.ARGOS.CO.UK,SMART TV PAYMENT FOR CLIENT,People's Services,Miscellaneous Expenses,A49000
http://opendatacommunities.org/id/london-borough-council/sutton,London Borough of Sutton,22/11/2023,10015039,4.99,AMZNMKTPLACE,SPLIT - ACCIDENT REPORT BOOK: A4 - HSE COMPLIANT ACCIDENT & INCIDENT LOG BOOK | WORKPLACE HEALTH & SAFETY RECORD BOOK (HEALTH AND SAFETY REPORTS) - 110 PAGES. (100%),People's Services,Miscellaneous Expenses,A49000
http://opendatacommunities.org/id/london-borough-council/sutton,London Borough of Sutton,23/11/2023,10015039,4.58,AMZNMKTPLACE,SPLIT - FOOD ALLERGY AWARENESS SIGN A4 LIST (297MM X 210MM) LAMINATED 400G 14 ALLERGENS POSTER THE CLEAREST FOOD ALLERGY NOTICE IN THE FOOD AND HYGIENE POSTERS RANGE. ALLERGY WARNING SIGN (100%),People's Services,Miscellaneous Expenses,A49000
http://opendatacommunities.org/id/london-borough-council/sutton,London Borough of Sutton,08/11/2023,10015039,23.13,AMZNMKTPLACE,"SPLIT - EXTENSION LEAD WITH 4 USB SLOTS (3.4A, 1 TYPE C AND 3 USB-A PORTS) ,POWSAF POWER STRIP SURGE PROTECTOR WITH 3 WAY PLUG EXTENSION SOCKET AND 2M EXTENSION CUBE CABLE FOR HOME OFFICE TRAVEL,BLACK (104.36%)",People's Services,Miscellaneous Expenses,A49000
http://opendatacommunities.org/id/london-borough-council/sutton,London Borough of Sutton,08/11/2023,10015039,-0.97,AMZNMKTPLACE,BALANCING ENTRY AMOUNT (-13.08%),People's Services,Miscellaneous Expenses,A49000
http://opendatacommunities.org/id/london-borough-council/sutton,London Borough of Sutton,08/11/2023,10015039,14.99,AMZNMKTPLACE,"SPLIT - LIFEWIT CUTLERY DRAWER ORGANISER, EXPANDABLE UTENSIL TRAY FOR KITCHEN, ADJUSTABLE SILVERWARE AND FLATWARE HOLDER, COMPACT PLASTIC STORAGE FOR SPOONS FORKS KNIVES, LARGE, BLACK (17.01%)",People's Services,Miscellaneous Expenses,A49000
http://opendatacommunities.org/id/london-borough-council/sutton,London Borough of Sutton,08/11/2023,10015039,51.8,AMZNMKTPLACE,"SPLIT - CHAOWEI DVB66 HIGH GAIN FREEVIEW TV AERIAL- PORTABLE INDOOR/OUTDOOR HD TV ANTENNA FOR USB TV TUNER/DVB-T2 TELEVISION/SD/4K 1080P-WITH MAGNETIC BASE,6.5FT COAX CABLE (58.78%)",People's Services,Miscellaneous Expenses,A49000
http://opendatacommunities.org/id/london-borough-council/sutton,London Borough of Sutton,08/11/2023,10015039,28.35,AMZNMKTPLACE,"SPLIT - A4 LEVER ARCH FILE | ELBA, PAPER ON BOARD, BLACK, PACK OF 10 FOLDERS (100%)",People's Services,Miscellaneous Expenses,A49000
http://opendatacommunities.org/id/london-borough-council/sutton,London Borough of Sutton,08/11/2023,10015039,3.15,AMZNMKTPLACE,"SPLIT - 400 PASTEL STICKY NOTES (76X76MM) - COLOURFUL REMOVABLE ADHESIVE MEMO PADS IN BLUE, PINK, GREEN, YELLOW | SET OF 4 PADS (100 SHEETS EACH) | OFFICE, HOME & SCHOOL USE - 4 PACKS (100%)",People's Services,Miscellaneous Expenses,A49000
http://opendatacommunities.org/id/london-borough-council/sutton,London Borough of Sutton,07/11/2023,10015039,8.92,AMZNMKTPLACE,"SPLIT - AMAZON BASICS 12-PIECE COLOURED KNIFE SET, ASSORTED (100%)",People's Services,Miscellaneous Expenses,A49000
http://opendatacommunities.org/id/london-borough-council/sutton,London Borough of Sutton,07/11/2023,10015039,15.82,AMZNMKTPLACE,SPLIT - BIRD COMBINATION KEY CABINET - KEY BOX WALL MOUNTED - STORAGE FOR UP TO 20 KEYS (100%),People's Services,Miscellaneous Expenses,A49000
http://opendatacommunities.org/id/london-borough-council/sutton,London Borough of Sutton,08/11/2023,10015039,22.09,AMZNMKTPLACE,SPLIT - CDC® 4.6L DIGITAL STEEL SAFE ELECTRONIC SECURITY HOME OFFICE MONEY CASH SAFETY BOX 2 KEYS (25.07%),People's Services,Miscellaneous Expenses,A49000
http://opendatacommunities.org/id/london-borough-council/sutton,London Borough of Sutton,07/11/2023,10015039,16.66,AMZNMKTPLACE,SPLIT - INDIGO BOX OF A4 OFFICE WHITE PRINTER COPIER PAPER 5 REAMS OF 500 (75-80GSM) MULTIFUNCTION LASER INKJET PAPER 2500 SHEETS (100%),People's Services,Miscellaneous Expenses,A49000
http://opendatacommunities.org/id/london-borough-council/sutton,London Borough of Sutton,07/11/2023,10015039,154.95,WWW.ARGOS.CO.UK,ARGOS TV PAYMENT FOR CHILDREN'S HOME,People's Services,Miscellaneous Expenses,A49000
http://opendatacommunities.org/id/london-borough-council/sutton,London Borough of Sutton,07/11/2023,10015039,11.67,AMZNMKTPLACE,"SPLIT - SUPTEK TV WALL BRACKET MOUNT SWIVEL AND TILT FOR MOST 15""-32"" LED, LCD, OLED FLAT SCREEN TVS AND MONITORS WITH VESA 75X75-100X100MM UP TO 13KG FULL MOTION MONITOR WALL BRACKET MA2720 (105.34%)",People's Services,Miscellaneous Expenses,A49000
http://opendatacommunities.org/id/london-borough-council/sutton,London Borough of Sutton,07/11/2023,10015039,-0.71,AMZNMKTPLACE,BALANCING ENTRY AMOUNT (-16.02%),People's Services,Miscellaneous Expenses,A49000
http://opendatacommunities.org/id/london-borough-council/sutton,London Borough of Sutton,06/11/2023,10015039,194.97,COSTCO ONLINE UK LIMIT,COSTCO SHOPPING PAYMENT FOR CHILDREN'S HOME,People's Services,Miscellaneous Expenses,A49000
http://opendatacommunities.org/id/london-borough-council/sutton,London Borough of Sutton,08/11/2023,10015039,-0.76,AMZNMKTPLACE,BALANCING ENTRY AMOUNT (-2.58%),People's Services,Miscellaneous Expenses,A49000
http://opendatacommunities.org/id/london-borough-council/sutton,London Borough of Sutton,24/11/2023,10015039,27.78,AMZNMKTPLACE,"SPLIT - RUSSELL HOBBS 19750 RICE COOKER AND STEAMER, 1.8L, SILVER (100%)",People's Services,Miscellaneous Expenses,A49000
http://opendatacommunities.org/id/london-borough-council/sutton,London Borough of Sutton,24/11/2023,10015039,12.74,AMZNMKTPLACE,"SPLIT - THINGSPLUS BAKING TRAYS FOR OVEN NON STICK, PREMIUM QUALITY NON-STICK OVEN TRAY SET WITH TEFLON COATING, CARBON STEEL BAKING TRAY SET OF 3 WITH SILICONE PASTRY BRUSH FOR COOKIES & SAVORIES (33X23X2CM) (100%)",People's Services,Miscellaneous Expenses,A49000
http://opendatacommunities.org/id/london-borough-council/sutton,London Borough of Sutton,30/10/2023,10015039,4.99,AMZNMKTPLACE,"SPLIT - 25 PACK HEAVY DUTY KEY TAGS WITH LABELS - 5 COLOURS, PLASTIC BOX WITH EXTRA PAPER LABELS, KEYRINGS & KEY FOBS WITH SPLIT RINGS FOR KEYS, PETS, LUGGAGE (48.82%)",People's Services,Approved Lodgings,A61000
http://opendatacommunities.org/id/london-borough-council/sutton,London Borough of Sutton,30/10/2023,10015039,5.23,AMZNMKTPLACE,"SPLIT - SPRING SNAP HOOKS, 304 STAINLESS STEEL METAL CLIP HEAVY DUTY ROPE CONNECTOR SMALL SNAP CLAMP KEY CHAIN LINK BUCKLE FOR HAMMOCK SWING SET OUTDOOR TRAVE (51.18%)",People's Services,Approved Lodgings,A61000
http://opendatacommunities.org/id/london-borough-council/sutton,London Borough of Sutton,03/11/2023,10015039,35.05,WWW.VEOLIA.COM,WASTE COLLECTION - FRIDGE/FREEZER FOR CLIENT,People's Services,Approved Lodgings,A61000
http://opendatacommunities.org/id/london-borough-council/sutton,London Borough of Sutton,07/11/2023,10015039,147,WWW.ARGOS.CO.UK,ITEMS NEEDED FOR A LEAVING CARE YOUNG PERSON,People's Services,Client Care/Assistance,A61011
http://opendatacommunities.org/id/london-borough-council/sutton,London Borough of Sutton,09/11/2023,10015039,112.2,CLOCKTOWER CARS,Hotel booking due to out of borough visit,People's Services,Equipment And Materials Purchase,A40000
http://opendatacommunities.org/id/london-borough-council/sutton,London Borough of Sutton,10/11/2023,10015039,37.38,TRAVELODGE,HOTEL STAY FOR CLIENT,People's Services,Hotel Accomodation,A46010
http://opendatacommunities.org/id/london-borough-council/sutton,London Borough of Sutton,24/11/2023,10015039,40.78,TRAVELODGE,HOTEL STAY FOR CLIENT,People's Services,Hotel Accomodation,A46010
http://opendatacommunities.org/id/london-borough-council/sutton,London Borough of Sutton,10/11/2023,10015039,47.58,TRAVELODGE,HOTEL STAY FOR CLIENT,People's Services,Hotel Accomodation,A46010
http://opendatacommunities.org/id/london-borough-council/sutton,London Borough of Sutton,24/11/2023,10015039,158.1,TRAVELODGE,Hotel required for client,People's Services,Hotel Accomodation,A46010
http://opendatacommunities.org/id/london-borough-council/sutton,London Borough of Sutton,26/10/2023,10015039,225.45,WWW.MEADOPENFARM.CO.UK,ACTIVITY FOR CLIENT,People's Services,Client Activities,A56028
http://opendatacommunities.org/id/london-borough-council/sutton,London Borough of Sutton,10/11/2023,10015039,348.79,TRAVELODGE,Hotel required for client,People's Services,Client Care/Assistance,A61011
http://opendatacommunities.org/id/london-borough-council/sutton,London Borough of Sutton,21/11/2023,10015039,692,PREMIER INN,Hotel required for client,People's Services,Hotel Accomodation,A46010
http://opendatacommunities.org/id/london-borough-council/sutton,London Borough of Sutton,22/11/2023,10015039,651.7,TRAVELODGE,SOCIAL WORKER REQUEST FOR HOTEL BOOKING.,People's Services,Hotel Accomodation,A46010
http://opendatacommunities.org/id/london-borough-council/sutton,London Borough of Sutton,20/11/2023,10015039,925.05,TRAVELODGE,Hotel required for client,People's Services,Client Care/Assistance,A61011
http://opendatacommunities.org/id/london-borough-council/sutton,London Borough of Sutton,16/11/2023,10015039,694.54,TRAVELODGE,Hotel required for client,People's Services,Client Care/Assistance,A61011
http://opendatacommunities.org/id/london-borough-council/sutton,London Borough of Sutton,31/10/2023,10015039,437.5,PREMIER INN,HOTEL NEEDED FOR A CLIENT,People's Services,Client Care/Assistance,A61011
http://opendatacommunities.org/id/london-borough-council/sutton,London Borough of Sutton,08/11/2023,10015039,578,PREMIER INN,Hotel required for client,People's Services,Client Care/Assistance,A61011
http://opendatacommunities.org/id/london-borough-council/sutton,London Borough of Sutton,17/11/2023,10015039,235.42,TRAVELODGE,HOTEL STAY FOR CLIENT,People's Services,Client Care/Assistance,A61011
http://opendatacommunities.org/id/london-borough-council/sutton,London Borough of Sutton,21/11/2023,10015039,42,INTERFLORA BRITISH UNI,Flowers for adoptive clients,People's Services,Miscellaneous Expenses,A49000
http://opendatacommunities.org/id/london-borough-council/sutton,London Borough of Sutton,24/11/2023,10015039,29.75,MARKS&SPENCER PLC,Flowers for adoptive clients,People's Services,Equipment And Materials Purchase,A40000
http://opendatacommunities.org/id/london-borough-council/sutton,London Borough of Sutton,22/11/2023,10015039,219.6,WWW.BIGYELLOW.CO.UK,Storage agreement for client,People's Services,Storage And Archiving Services,A44085
http://opendatacommunities.org/id/london-borough-council/sutton,London Borough of Sutton,01/11/2023,10015039,183,WWW.BIGYELLOW.CO.UK,STORAGE PAYMENT FOR BIG YELLOW STORAGE FOR CLIENT,People's Services,Client Care/Assistance,A61011
http://opendatacommunities.org/id/london-borough-council/sutton,London Borough of Sutton,24/11/2023,10015039,50,BRITISH GAS ONLINE,BRITISH GAS PAYMENT FOR CLIENT,People's Services,Miscellaneous Expenses,A49000
http://opendatacommunities.org/id/london-borough-council/sutton,London Borough of Sutton,04/11/2023,10015039,-12,WWW.ARGOS.CO.UK,REFUND FROM ORDER MADE AT ARGOS FOR CLIENT,People's Services,Miscellaneous Expenses,A49000
http://opendatacommunities.org/id/london-borough-council/sutton,London Borough of Sutton,03/11/2023,10015039,-12,WWW.ARGOS.CO.UK,SOCIAL WORKER REQUEST FOR DOORBELL.,People's Services,Miscellaneous Expenses,A49000
http://opendatacommunities.org/id/london-borough-council/sutton,London Borough of Sutton,27/10/2023,10015039,12,WWW.ARGOS.CO.UK,DOORBELL FOR CLIENT,People's Services,Miscellaneous Expenses,A49000
http://opendatacommunities.org/id/london-borough-council/sutton,London Borough of Sutton,26/10/2023,10015039,40.99,WWW.ARGOS.CO.UK,SOCIAL WORKER REQUEST FOR HOUSEHOLD ITEMS FOR SERVICE USER.,People's Services,Miscellaneous Expenses,A49000
http://opendatacommunities.org/id/london-borough-council/sutton,London Borough of Sutton,24/11/2023,10015039,50,BRITISH GAS ONLINE,GAS / ELECTRICITY TOP UP FOR CLIENT,People's Services,Miscellaneous Expenses,A49000
http://opendatacommunities.org/id/london-borough-council/sutton,London Borough of Sutton,26/10/2023,10015039,12,WWW.ARGOS.CO.UK,SOCIAL WORKER REQUEST OF A DOORBELL FOR A SERVICE USER.,People's Services,Miscellaneous Expenses,A49000
http://opendatacommunities.org/id/london-borough-council/sutton,London Borough of Sutton,22/11/2023,10015039,50,BRITISH GAS ONLINE,GAS / ELECTRICITY TOP UP FOR CLIENT,People's Services,Miscellaneous Expenses,A49000
http://opendatacommunities.org/id/london-borough-council/sutton,London Borough of Sutton,22/11/2023,10015039,50,BRITISH GAS ONLINE,GAS / ELECTRICITY TOP UP FOR CLIENT,People's Services,Miscellaneous Expenses,A49000
http://opendatacommunities.org/id/london-borough-council/sutton,London Borough of Sutton,17/11/2023,10015039,100,WALLINGTON CARS & COUR,TAXI BOOKING FOR CLIENT,People's Services,C.C.A Travel & Subsistance,A61010
http://opendatacommunities.org/id/london-borough-council/sutton,London Borough of Sutton,09/11/2023,10015039,208.44,WWW.ARGOS.CO.UK,Required for client / home set up,People's Services,Equipment And Materials Repairs & Maintenance,A40051
http://opendatacommunities.org/id/london-borough-council/sutton,London Borough of Sutton,09/11/2023,10015039,109.95,WWW.ARGOS.CO.UK,Required for client / home set up,People's Services,Equipment And Materials Repairs & Maintenance,A40051
http://opendatacommunities.org/id/london-borough-council/sutton,London Borough of Sutton,23/11/2023,10015039,-3.95,WWW.ARGOS.CO.UK,Items required for client,People's Services,Equipment And Materials Repairs & Maintenance,A40051
http://opendatacommunities.org/id/london-borough-council/sutton,London Borough of Sutton,23/11/2023,10015039,-51,WWW.ARGOS.CO.UK,Items required for client,People's Services,Equipment And Materials Repairs & Maintenance,A40051
http://opendatacommunities.org/id/london-borough-council/sutton,London Borough of Sutton,23/11/2023,10015039,56.95,WWW.ARGOS.CO.UK,SAFE & BLANKETS PAYMENT FOR CHILDREN'S CENTRE,People's Services,Equipment And Materials Repairs & Maintenance,A40051
http://opendatacommunities.org/id/london-borough-council/sutton,London Borough of Sutton,21/11/2023,10015039,54.95,WWW.ARGOS.CO.UK,Items required for client,People's Services,Equipment And Materials Repairs & Maintenance,A40051
http://opendatacommunities.org/id/london-borough-council/sutton,London Borough of Sutton,21/11/2023,10015039,"1,440.00",THE EMDR ACADEMY,REBECCA HOLLAND - EMDR ACCREDITED COURSE,People's Services,Staff Development And Training,A15022
http://opendatacommunities.org/id/london-borough-council/sutton,London Borough of Sutton,13/11/2023,10015039,395,PAYPAL  TRUSTEDASSE,DERYA KATIKSIZ -  TRUSTED ASSESSOR: ASSESSING FOR MINOR ADAPTATIONS (LEVEL 3) - 14TH AND 15TH NOVEMBER,People's Services,Staff Development And Training,A15022
http://opendatacommunities.org/id/london-borough-council/sutton,London Borough of Sutton,02/11/2023,10015039,42,VIVA ACCESS LTD,ANN GAYNOR -  HOUSING & EQUIPMENT SOLUTIONS FOR USERS WITH DEMENTIA 14/12/23 - VIVA ACCESS,People's Services,Staff Development And Training,A15022
http://opendatacommunities.org/id/london-borough-council/sutton,London Borough of Sutton,02/11/2023,10015039,40.2,VIVA ACCESS LTD,ANN GAYNOR -  BATHROOM ADAPTATION AND DESIGN PART 1 16/01/24 - VIVA ACCESS,People's Services,Staff Development And Training,A15022
http://opendatacommunities.org/id/london-borough-council/sutton,London Borough of Sutton,24/11/2023,10015039,329.17,PWEVENTHIRELTD.MARQUEE,TABLES FOR PFA EVENT,People's Services,Conference Expenses,A43075
http://opendatacommunities.org/id/london-borough-council/sutton,London Borough of Sutton,26/10/2023,10015039,240,DOCUSIGN INC.,DOCUSIGN PAYMENT FOR CYPDS TEAM,People's Services,Subscriptions,A47010
http://opendatacommunities.org/id/london-borough-council/sutton,London Borough of Sutton,02/11/2023,10015039,11,TOWER HAMLETS BC,SOCIAL WORKER REQUEST FOR BIRTH CERTIFICATE,People's Services,Miscellaneous Expenses,A49000
http://opendatacommunities.org/id/london-borough-council/sutton,London Borough of Sutton,01/11/2023,10015039,11,ESSEX COUNTY COUNCI EC,SOCIAL WORKER REQUESTED BIRTH CERTIFICATE,People's Services,Miscellaneous Expenses,A49000
http://opendatacommunities.org/id/london-borough-council/sutton,London Borough of Sutton,02/11/2023,10015039,16,LONDON BOROUGH OF HAVE,SOCIAL WORKER BIRTH CERTIFICATE REQUEST,People's Services,Miscellaneous Expenses,A49000
http://opendatacommunities.org/id/london-borough-council/sutton,London Borough of Sutton,15/11/2023,10015039,26.25,WWW.ARGOS.CO.UK,ARGOS ORDER FOR CLIENT,People's Services,Equipment,A61013
http://opendatacommunities.org/id/london-borough-council/sutton,London Borough of Sutton,01/11/2023,10015039,171.5,WWW.ARGOS.CO.UK,ARGOS ORDER FOR CLIENT,People's Services,Equipment,A61013
http://opendatacommunities.org/id/london-borough-council/sutton,London Borough of Sutton,08/11/2023,10015039,236.95,WWW.ARGOS.CO.UK,SOCIAL WORKER REQUEST FOR WASHING MACHINE.,People's Services,Client Care/Assistance,A61011
http://opendatacommunities.org/id/london-borough-council/sutton,London Borough of Sutton,09/11/2023,10015039,18.54,LYNKPAY  TAKEME PLYMOU,taxi booking due to out of borough visit,People's Services,Hotel Accomodation,A46010
http://opendatacommunities.org/id/london-borough-council/sutton,London Borough of Sutton,09/11/2023,10015039,18.54,LYNKPAY  TAKEME PLYMOU,taxi booking due to out of borough visit,People's Services,Hotel Accomodation,A46010
http://opendatacommunities.org/id/london-borough-council/sutton,London Borough of Sutton,16/11/2023,10015039,-18.54,LYNKPAY  TAKEME PLYMOU,taxi booking due to out of borough visit,People's Services,Hotel Accomodation,A46010
http://opendatacommunities.org/id/london-borough-council/sutton,London Borough of Sutton,24/11/2023,10015039,"1,026.67",HOLIDAY INNS,HOTEL NEEDED FOR A CLIENT,People's Services,Hotel Accomodation,A46010
http://opendatacommunities.org/id/london-borough-council/sutton,London Borough of Sutton,30/10/2023,10015039,"2,117.50",HOTEL IBIS,HOTEL STAY FOR CLIENT,People's Services,Client Care/Assistance,A61011
http://opendatacommunities.org/id/london-borough-council/sutton,London Borough of Sutton,08/11/2023,10015039,800.91,PREMIER INN,Hotel required for client,People's Services,Client Care/Assistance,A61011
http://opendatacommunities.org/id/london-borough-council/sutton,London Borough of Sutton,08/11/2023,10015039,441.94,PREMIER INN,Hotel required for client,People's Services,Client Care/Assistance,A61011
http://opendatacommunities.org/id/london-borough-council/sutton,London Borough of Sutton,30/10/2023,10015039,"-1,440.50",HOTEL IBIS,REFUND FOR PART OF HOTEL STAY FOR CLIENT,People's Services,Client Care/Assistance,A61011
http://opendatacommunities.org/id/london-borough-council/sutton,London Borough of Sutton,03/11/2023,10015039,150,1A IDEAL LOCKSMITHS,START TEAM EXPENSE,People's Services,Miscellaneous Expenses,A49000
http://opendatacommunities.org/id/london-borough-council/sutton,London Borough of Sutton,22/11/2023,10015039,50,ALLIUM,FUNERAL WREATH OWEN,Resources,Funeral Expenses,A44220
http://opendatacommunities.org/id/london-borough-council/sutton,London Borough of Sutton,08/11/2023,10015039,11,SUTTON REGISTER OFFICE,DEATH CERT OWEN,Resources,Funeral Expenses,A44220
http://opendatacommunities.org/id/london-borough-council/sutton,London Borough of Sutton,25/11/2023,10015039,"1,831.25",BKG HOTEL AT BOOKING.C,Accommodation x 5 for attendance at Children's and Adults conference in Bournemouth 28 November to 1st December 2023,People's Services,Conference Expenses,A43075
http://opendatacommunities.org/id/london-borough-council/sutton,London Borough of Sutton,LCC VAT NOVEMBER 2023,10015039,"2,101.75",,,Corporate Balance Sheet,Court Costs - Council Tax Bad Debt Provision,B20220
http://opendatacommunities.org/id/london-borough-council/sutton,London Borough of Sutton,21/11/2023,10015039,12.45,TOOLSTATION LTD,FIXINGS FOR NEW SIGNS FOR SURFACE CAR PARKS,Environment Housing and Neighbourhoods,Other Capital Expenditure,C20002
http://opendatacommunities.org/id/london-borough-council/sutton,London Borough of Sutton,16/11/2023,10015039,972.6,PROMO PARROT,Promotional items for a team,People's Services,Miscellaneous Expenses,A49000
http://opendatacommunities.org/id/london-borough-council/sutton,London Borough of Sutton,31/10/2023,10015039,100,ATGTICKETS.COM,ATG TICKETS A CHRISTMAS CAROL ON 20TH NOVEMBER 2023,Health and Wellbeing,Other Supplies & Services,A44291
http://opendatacommunities.org/id/london-borough-council/sutton,London Borough of Sutton,01/11/2023,10015039,69.45,GSUITE_SUTTONCOLLEGE.A,GOOGLE CLOUD EMEA LIMITED 4836239593,Health and Wellbeing,Subscriptions,A47010
http://opendatacommunities.org/id/london-borough-council/sutton,London Borough of Sutton,27/11/2023,10015039,25.46,,,Health and Wellbeing,Subscriptions,A47010
http://opendatacommunities.org/id/london-borough-council/sutton,London Borough of Sutton,26/11/2023,10015039,925.79,MOJO HELPDESK,IT MOJO SUBSCRIPTION,Health and Wellbeing,Subscriptions,A47010
http://opendatacommunities.org/id/london-borough-council/sutton,London Borough of Sutton,07/11/2023,10015039,9.14,WM MORRISONS STORE,MORRISONS COFFEE & CAKE 081123 9.14,Health and Wellbeing,Catering,A41000
http://opendatacommunities.org/id/london-borough-council/sutton,London Borough of Sutton,07/11/2023,10015039,19.48,AMZNMKTPLACE,SPLIT - 100 PAPER CUPS - DISPOSABLE PAPER CUPS FOR HOT AND COLD DRINKS | ECO FREINDLY DRINKING COFFEE CUPS DISPOSABLE | 8OZ - 236ML (100%),Health and Wellbeing,Publicity,A44266
http://opendatacommunities.org/id/london-borough-council/sutton,London Borough of Sutton,31/10/2023,10015039,118.73,FACEBK  QWA9LS76A2,FACEBOOK 118.73 311023 SATURDAY SESSIONS,Health and Wellbeing,Publicity,A44266
http://opendatacommunities.org/id/london-borough-council/sutton,London Borough of Sutton,24/11/2023,10015039,890,INSTANTPRINT.CO.UK,INSTANTPRINT COURSE GUIDE RERUN 241123 890.00,Health and Wellbeing,Publicity,A44266
http://opendatacommunities.org/id/london-borough-council/sutton,London Borough of Sutton,07/11/2023,10015039,47.99,ADOBE.COM,ADOBE 071123 47.99,Health and Wellbeing,Publicity,A44266
http://opendatacommunities.org/id/london-borough-council/sutton,London Borough of Sutton,30/10/2023,10015039,114.59,MAILCHIMP,MAILCHIMP £114.59 301023,Health and Wellbeing,Publicity,A44266
http://opendatacommunities.org/id/london-borough-council/sutton,London Borough of Sutton,28/10/2023,10015039,3.9,GREGGS PLC,GREGGS 281023 3.90,Health and Wellbeing,Publicity,A44266
http://opendatacommunities.org/id/london-borough-council/sutton,London Borough of Sutton,15/11/2023,10015039,76.09,TAPS EMPIRE,REPLACEMENT DISABLED TOILET SEAT,Health and Wellbeing,Other Premises Costs,A29040
http://opendatacommunities.org/id/london-borough-council/sutton,London Borough of Sutton,16/11/2023,10015039,189.93,AMZNMKTPLACE,NEW NAIL STATIONS FOR THE BEAUTY DEPT,Health and Wellbeing,Insurance Claims,A44261
http://opendatacommunities.org/id/london-borough-council/sutton,London Borough of Sutton,20/11/2023,10015039,130,AMZNMKTPLACE,REPLACEMENT BEAUTY STOOLS FOR BEAUTY COURSE,Health and Wellbeing,Insurance Claims,A44261
http://opendatacommunities.org/id/london-borough-council/sutton,London Borough of Sutton,20/11/2023,10015039,63.33,AMZNMKTPLACE,PEDAL BINS FOR BEAUTY DEPARTMENT,Health and Wellbeing,Insurance Claims,A44261
http://opendatacommunities.org/id/london-borough-council/sutton,London Borough of Sutton,20/11/2023,10015039,130,AMZNMKTPLACE,REPLACEMENT BEAUTY STOOLS FOR BEAUTY COURSE,Health and Wellbeing,Insurance Claims,A44261
http://opendatacommunities.org/id/london-borough-council/sutton,London Borough of Sutton,08/11/2023,10015039,8.91,AMZNMKTPLACE,INV-GB-1844718615-2023-220 DRILL BITS,Health and Wellbeing,Equipment And Materials Purchase,A40000
http://opendatacommunities.org/id/london-borough-council/sutton,London Borough of Sutton,08/11/2023,10015039,28.67,AMZNMKTPLACE,GB31X4ASABEI TILE ADHESIVE,Health and Wellbeing,Equipment And Materials Purchase,A40000
http://opendatacommunities.org/id/london-borough-council/sutton,London Borough of Sutton,08/11/2023,10015039,23.37,B&Q MARKETPLACE,B&Q MAGNUSSON BLOCK PLANE,Health and Wellbeing,Equipment And Materials Purchase,A40000
http://opendatacommunities.org/id/london-borough-council/sutton,London Borough of Sutton,08/11/2023,10015039,4.99,AMZNMKTPLACE,GB31X4AKABEI DRILL BITS,Health and Wellbeing,Equipment And Materials Purchase,A40000
http://opendatacommunities.org/id/london-borough-council/sutton,London Borough of Sutton,17/11/2023,10015039,-1.25,B&Q MARKETPLACE,23379 B&Q WOODWORK  REFUND,Health and Wellbeing,Equipment And Materials Purchase,A40000
http://opendatacommunities.org/id/london-borough-council/sutton,London Borough of Sutton,16/11/2023,10015039,56.54,B&Q MARKETPLACE,23379 B&Q WOODWORK,Health and Wellbeing,Equipment And Materials Purchase,A40000
http://opendatacommunities.org/id/london-borough-council/sutton,London Borough of Sutton,02/11/2023,10015039,65.82,AMZNBUSINESS H242M51U4,A3 ART PROJECT CARRY CASES FOR ART DEPT / PHOTOGRAPHY,Health and Wellbeing,Equipment And Materials Purchase,A40000
http://opendatacommunities.org/id/london-borough-council/sutton,London Borough of Sutton,26/10/2023,10015039,56.5,EBAY O 21-10700-30206,MASSAGE HEATER HOT STONE KIT,Health and Wellbeing,Equipment And Materials Purchase,A40000
http://opendatacommunities.org/id/london-borough-council/sutton,London Borough of Sutton,08/11/2023,10015039,21.66,AMZNMKTPLACE,INV-GB-1165402415-2023-90825 LAUNDRY PODS,Health and Wellbeing,Equipment And Materials Purchase,A40000
http://opendatacommunities.org/id/london-borough-council/sutton,London Borough of Sutton,26/10/2023,10015039,18.98,EBAY O 21-10700-30208,EMS FACIAL BODY MUSCLE STIMULATOR,Health and Wellbeing,Equipment And Materials Purchase,A40000
http://opendatacommunities.org/id/london-borough-council/sutton,London Borough of Sutton,26/10/2023,10015039,144.99,EBAY O 21-10700-30207,SLIMMING BEAUTY MACHINE,Health and Wellbeing,Equipment And Materials Purchase,A40000
http://opendatacommunities.org/id/london-borough-council/sutton,London Borough of Sutton,26/11/2023,10015039,27.97,AMZNMKTPLACE,Pebbles and wood slices craft kits for painting by LLDD dept,Health and Wellbeing,Equipment And Materials Purchase,A40000
http://opendatacommunities.org/id/london-borough-council/sutton,London Borough of Sutton,08/11/2023,10015039,4.16,AMZNMKTPLACE,INV-GB-1568084315-2023-1651 BALLOONS,Health and Wellbeing,Equipment And Materials Purchase,A40000
http://opendatacommunities.org/id/london-borough-council/sutton,London Borough of Sutton,30/10/2023,10015039,6.89,AMZNBUSINESS H21VW1FL4,SPLIT - A KIND OF SPARK (100%),People's Services,LAC - Education,A44280
http://opendatacommunities.org/id/london-borough-council/sutton,London Borough of Sutton,30/10/2023,10015039,199.99,AMZNMKTPLACE,SPLIT - HP CHROMEBOOK 11A-NE0000NA | MEDIATEK MT8183 PROCESSOR | 4GB RAM | 64GB EMMC | 11.6 INCH HD 16:9 DISPLAY | GOOGLE CHROME OS | ASH GREY (100%),People's Services,LAC - Education,A44280
http://opendatacommunities.org/id/london-borough-council/sutton,London Borough of Sutton,30/10/2023,10015039,199.99,AMZNMKTPLACE,SPLIT - HP CHROMEBOOK 11A-NE0000NA | MEDIATEK MT8183 PROCESSOR | 4GB RAM | 64GB EMMC | 11.6 INCH HD 16:9 DISPLAY | GOOGLE CHROME OS | ASH GREY (100%),People's Services,LAC - Education,A44280
http://opendatacommunities.org/id/london-borough-council/sutton,London Borough of Sutton,16/11/2023,10015039,8.62,AMZNBUSINESS HB9TC09F4,SPLIT - FUNCTIONAL SKILLS MATHS LEVEL 1 - STUDY & TEST PRACTICE (CGP FUNCTIONAL SKILLS) (38.14%),People's Services,LAC - Education,A44280
http://opendatacommunities.org/id/london-borough-council/sutton,London Borough of Sutton,16/11/2023,10015039,8.99,AMZNBUSINESS HB9TC09F4,SPLIT - FUNCTIONAL SKILLS MATHS REVISION QUESTION CARDS - LEVEL 1 (CGP FUNCTIONAL SKILLS) (39.78%),People's Services,LAC - Education,A44280
http://opendatacommunities.org/id/london-borough-council/sutton,London Borough of Sutton,07/11/2023,10015039,11.99,AMZNBUSINESS H23SX2I94,SPLIT - ANATOMY & PHYSIOLOGY: THE BEST AND MOST EFFECTIVE WAY TO LEARN THE ANATOMY AND PHYSIOLOGY OF THE HUMAN BODY: WORKBOOK (100%),People's Services,LAC - Education,A44280
http://opendatacommunities.org/id/london-borough-council/sutton,London Borough of Sutton,27/10/2023,10015039,6.45,AMZNMKTPLACE,"SPLIT - CLAIREFONTAINE - REF 68142C - WIRE BOUND NOTEBOOK (100 PAGES) - A4 IN SIZE, SQUARED RULING, 90GSM BRUSHED VELLUM PAPER, LAMINATED CARD COVER - RANDOM (100%)",People's Services,LAC - Education,A44280
http://opendatacommunities.org/id/london-borough-council/sutton,London Borough of Sutton,16/11/2023,10015039,4.99,AMZNBUSINESS HB9TC09F4,SPLIT - FUNCTIONAL SKILLS MATHS LEVEL 1 - 10 MINUTE TESTS (CGP FUNCTIONAL SKILLS) (22.08%),People's Services,LAC - Education,A44280
http://opendatacommunities.org/id/london-borough-council/sutton,London Borough of Sutton,14/11/2023,10015039,240,AMAZON PRIME HB9VT9BH4,AMAZON PRIME ANNUAL FEE FOR BUSINESS MEMBERSHIP FOR SUTTON VS,People's Services,LAC - Education,A44280
http://opendatacommunities.org/id/london-borough-council/sutton,London Borough of Sutton,10/11/2023,10015039,115.2,AMZNBUSINESS HB80G03P4,SPLIT - DRAGON BALL Z COMPLETE BOX SET: VOLS. 1-26 WITH PREMIUM (100%),People's Services,LAC - Education,A44280
http://opendatacommunities.org/id/london-borough-council/sutton,London Borough of Sutton,09/11/2023,10015039,9.12,AMZNMKTPLACE,"SPLIT - STRONG POLYTHENE MAILING POSTAL BAGS PLASTIC MATERIAL MAILING OR POSTING PARECELS BAG FOR POSTAGES STRONG SELF SEAL (16"" X 21"", GREY, 50) (100%)",People's Services,LAC - Education,A44280
http://opendatacommunities.org/id/london-borough-council/sutton,London Borough of Sutton,08/11/2023,10015039,5.69,AMZNBUSINESS HB9NA5CZ4,"SPLIT - PHYSIOTHERAPY: GETTING INTO PHYSIOTHERAPY, HOW TO START A PHYSIOTHERAPY CAREER (100%)",People's Services,LAC - Education,A44280
http://opendatacommunities.org/id/london-borough-council/sutton,London Borough of Sutton,23/11/2023,10015039,9.76,AMZNMKTPLACE,"SPLIT - POSITIVE AFFIRMATION CARDS FOR KIDS - 52 MINDFUL AFFIRMATIONS TO INSPIRE POSITIVITY, BUILD KIDS CONFIDENCE, SELF ESTEEM, KINDNESS (100%)",People's Services,LAC - Education,A44280
http://opendatacommunities.org/id/london-borough-council/sutton,London Borough of Sutton,24/11/2023,10015039,9.96,AMZNMKTPLACE,"SPLIT - KK BALANCE WOBBLE CUSHION FOR ADULTS AND KIDS, INFLATABLE ANTI-SLIP STABILITY BOARD FOR PHYSIO, POSTURE & FITNESS, WOBBLE CUSHION (34CM) BALANCE BOARD & FIDGET CUSHION (PURPLE) (100%)",People's Services,LAC - Education,A44280
http://opendatacommunities.org/id/london-borough-council/sutton,London Borough of Sutton,24/11/2023,10015039,225,AMZNMKTPLACE,"SPLIT - ACER CHROMEBOOK 311 CB311-11H - (MEDIATEK MT8183, 4GB, 64GB EMMC, 11.6 INCH HD DISPLAY, GOOGLE CHROME OS, SILVER) (100%)",People's Services,LAC - Education,A44280
http://opendatacommunities.org/id/london-borough-council/sutton,London Borough of Sutton,26/11/2023,10015039,236.75,AMZNMKTPLACE,CHROMEBOOK,People's Services,LAC - Education,A44280
http://opendatacommunities.org/id/london-borough-council/sutton,London Borough of Sutton,26/11/2023,10015039,9.57,AMAZON,laptop sleeve,People's Services,LAC - Education,A44280
http://opendatacommunities.org/id/london-borough-council/sutton,London Borough of Sutton,23/11/2023,10015039,6.99,AMZNMKTPLACE,"SPLIT - TODAY IS AWESOME - A POSITIVE THINKING, GRATITUDE AND WELLBEING JOURNAL FOR KIDS: A DAILY 5 MINUTE JOURNAL FOR CHILDREN TO PROMOTE MINDFULNESS, ... BOOST HAPPINESS! (POSITIVE MINDSET JOURNALS) (100%)",People's Services,LAC - Education,A44280
http://opendatacommunities.org/id/london-borough-council/sutton,London Borough of Sutton,23/11/2023,10015039,9.34,AMZNMKTPLACE,"SPLIT - HANDS ARE NOT FOR HITTING: REVISED & UPDATED (AGES 4-7, PAPERBACK) (BEST BEHAVIOR) (100%)",People's Services,LAC - Education,A44280
http://opendatacommunities.org/id/london-borough-council/sutton,London Borough of Sutton,19/11/2023,10015039,4.99,AMZNBUSINESS HI1169374,SPLIT - HANDWRITING TODAY: BK. 1 (HANDWRITING TODAY) (16.53%),People's Services,LAC - Education,A44280
http://opendatacommunities.org/id/london-borough-council/sutton,London Borough of Sutton,16/11/2023,10015039,23.23,AMZNBUSINESS HB5OX3ID4,SPLIT - LONGMAN WORDWISE DICTIONARY PAPER AND CD ROM PACK 2ED (100%),People's Services,LAC - Education,A44280
http://opendatacommunities.org/id/london-borough-council/sutton,London Borough of Sutton,20/11/2023,10015039,10.99,AMZNBUSINESS HI12K21C4,SPLIT - TIGRINYA-ENGLISH/ ENGLISH-TIGRINYA DICTIONARY & PHRASEBOOK (HIPPOCRENE DICTIONARY & PHRASEBOOK) (100%),People's Services,LAC - Education,A44280
http://opendatacommunities.org/id/london-borough-council/sutton,London Borough of Sutton,19/11/2023,10015039,25.2,AMZNBUSINESS HI1169374,SPLIT - LONGMAN PHOTO DICTIONARY (83.47%),People's Services,LAC - Education,A44280
http://opendatacommunities.org/id/london-borough-council/sutton,London Borough of Sutton,23/11/2023,10015039,259,WWW.THEBEAUTYACADEMY.O,ONLINE COMPLETE LASH TECHNICIAN TRAINING PACKAGE  FOR CLA PJ,People's Services,LAC - Education,A44280
http://opendatacommunities.org/id/london-borough-council/sutton,London Borough of Sutton,23/11/2023,10015039,11.49,AMZNMKTPLACE,SPLIT - GET TALKING CARDS FOR KIDS: 52 CONVERSATION STARTERS AND ACTIVITIES TO HELP YOUR CHILD UNDERSTAND THEMSELVES AND EXPRESS THEIR FEELINGS (100%),People's Services,LAC - Education,A44280
http://opendatacommunities.org/id/london-borough-council/sutton,London Borough of Sutton,21/11/2023,10015039,16.24,AMZNBUSINESS HI1HL2MK4,SPLIT - MESOB ENGLISH - TIGRINYA DICTIONARY: MESOB ENGLISH - TIGRINYA DICTIONARY (100%),People's Services,LAC - Education,A44280